{"text_format":"2","workbook":"xlsx","n_sheets":10,"sheets":["2022-2023 BoD","2021-2022 BoD","2020-2021 BoD","2019-2020 BoD","2018-2019 BoD","2017-2018 BoD","2016-2017 BoD","2015-2016 BoD","2014-2015 BoD","2013-2014 BoD"],"not_rendered":{"charts":0,"images":0,"macros":0,"external_links":0,"defined_names":10,"comments":0,"pivot_tables":0},"unopened":[],"bounds":{"document_bytes":16777216,"sheet_cells":100000,"run_cost":"one","rows_first":2000,"rows_last":500,"rows_between":2000,"halvings":0,"cell_chars":16384,"cell_head_chars":4096},"cells_cut":0,"cells_raw":0,"read":"whole","date_system":"1900"}

{"sheet":"2022-2023 BoD","index":0,"n_rows":41,"n_cols":10,"rows_kept":41,"cut":false,"hidden":false,"merged":[[0,0,0,9]]}
["2022-2023 Board of Directors"]
["Full Name","First Name","Last Name","Title ","Column1","Term","Business Name","Division","Member-at-Large","E/A"]
["Mike Andersen","Mike","Andersen",null,"x","1 Year","DAMA Industrial LLC","Specialty","Member at Large","Elected"]
["Aaron Bartel","Aaron","Bartel",null,"x","1 Year","B. C. Excavating, LLC","Highway/Utility",null,"Elected"]
["Derek Betts","Derek","Betts",null,"x","1 Year","Granite Construction Company","Highway/Utility","Member at Large","Elected"]
["Luke Blomfield","Luke","Blomfield","Contractor at Large ","x","Carry-Over","Davis Constructors & Engineers, Inc.","Building",null,"Elected"]
["Robert Champion","Robert","Champion",null,"x","1 Year",null,"Building",null,"Appointed"]
["Kirk Currey","Kirk","Currey",null,"x","1 Year","Construction Machinery Industrial, LLC (CMI)","Associate",null,"Elected"]
["Regina Daniels","Regina","Daniels",null,"x","2 Year","Davis Block & Concrete","Specialty",null,"Elected"]
["Toby Drake","Toby","Drake",null,"x","2 Year","Drake Construction, Inc.","Highway/Utility",null,"Elected"]
["Chris Duty","Chris","Duty","CLCR","x","1 Year","Hamilton Construction Alaska Co.","Highway/Utility",null,"Appointed"]
["Chrys Fleming","Chrys","Fleming",null,"x","1 Year","Alcan Electrical & Engineering, Inc.","Specialty","Member at Large","Elected"]
["Mike T. Gould","Mike T.","Gould",null,"x","1 Year","Excel Construction, Inc.","Specialty","Member at Large","Elected"]
["Kirstie Gray","Kirstie","Gray",null,"x","1 Year","Gray Services, LLC","Associate",null,"Appointed"]
["Troy Gray","Troy","Gray",null,"x","1 Year","Knik Construction Co., Inc.","Heavy Industrial","Member at Large","Elected"]
["Darrin Hansen","Darrin","Hansen",null,"x","1 Year","Kiewit Infrastructure West Co.","Heavy Industrial",null,"Appointed"]
["Saigen Harris","Saigen","Harris","Secretary","x","2 Year","F & W Construction Co., Inc.","Building",null,"Elected"]
["Sean Hickel","Sean","Hickel",null,"x","1 year","Roger Hickel Contracting, Inc.","Building",null,"Elected"]
["Dave Johnson","Dave","Johnson","Associate Member","x","Carry-Over","Anchorage Sand & Gravel Co., Inc.","Associate",null,"Elected"]
["Traci Johnson","Traci","Johnson","","x","1 Year","Spenard Builders Supply","Associate","","Elected"]
["Carrie Jokiel","Carrie","Jokiel","Treasurer","x","Carry-Over","ChemTrack Alaska, Inc.","Specialty",null,"Elected"]
["Joe Jolley","Joe","Jolley",null,"x","1 Year","Cornerstone General Contractors, Inc.","Building",null,"Appointed"]
["Matt Ketchum","Matt","Ketchum",null,"x","1 Year","K & H Civil Constructors, LLC","Highway/Utility",null,"Appointed"]
["Gary Klebs","Gary","Klebs",null,"x","Carry-Over","KLEBS Mechanical, Inc.","Specialty",null,"Elected"]
["Dax Lauwers","Dax","Lauwers",null,"x","1 Year","Marsh McLennan Agency","Associate",null,"Appointed"]
["Sarah Lefebvre","Sarah","Lefebvre","Immediate Past President","x","Carry-Over","Colaska Inc dba Exclusive Paving / University Redi Mix","Highway/Utility",null,"Elected"]
["Tyler Loken","Tyler","Loken",null,"x","1 Year","Loken Construction, LLC","Specialty",null,"Appointed"]
["Travis Malin","Travis","Malin",null,"x","1 Year","HC Contractors, Inc.","Highway/Utility",null,"Appointed"]
["Brian Midyett","Brian","Midyett","President","x","2 Year","STG Pacific, LLC","Heavy Industrial",null,"Elected"]
["Jeff Miller","Jeff","Miller",null,"x","1 Year","Cruz Construction, Inc.","Heavy Industrial","Member at Large","Elected"]
["Ron Pichler","Ron","Pichler",null,"x","1 Year","Denali Drilling, Inc.","Specialty","Member at Large","Elected"]
["Cuauhtemoc Rodriguez","Cuauhtemoc","Rodriguez",null,"x","1 Year","Coldfoot Environmental Services, Inc.","Specialty","Member at Large","Elected"]
["Steve Rowe","Steve","Rowe",null,"x","1 Year","Swalling General Contractors LLC","Heavy Industrial","Member at Large","Elected"]
["Kiersten Russell","Kiersten ","Russell",null,"x","1 Year","Northrim Bank","Associate",null,"Elected"]
["Lynne Seville","Lynne","Seville",null,"x","1 Year","Parker, Smith & Feek, Inc.","Associate",null,"Elected"]
["Heather Sottosanti","Heather","Sottosanti",null,"x","1 Year","Big State Mechanical, LLC","Specialty",null,"Elected"]
["John Szymik","John","Szymik",null,"x","1 Year","Hamilton Construction Alaska Co.","Highway/Utility","Member at Large","Elected"]
["Tamie Taylor","Tamie","Taylor",null,"x","1 Year","Taylored Business Solutions, LLC","Associate",null,"Appointed"]
["Marcus Trivette","Marcus","Trivette","Vice President","x","Carry-Over","Brice, Inc.","Heavy Industrial",null,"Elected"]
["Scott Vierra","Scott","Vierra",null,"x","1 Year","North Star Equipment Services","Associate",null,"Elected"]
["Brennan Walsh","Brennan","Walsh",null,"x","1 Year","STG, Inc.","Heavy Industrial",null,"Elected"]

{"sheet":"2021-2022 BoD","index":1,"n_rows":49,"n_cols":9,"rows_kept":49,"cut":false,"hidden":false,"merged":[[48,0,48,8],[47,0,47,8],[0,0,0,8],[45,0,45,8],[46,0,46,8],[44,0,44,8]]}
["2021-2022 Board of Directors"]
["Full Name","First Name","Last Name","Title ","Term","Business Name","Division","Member-at-Large","E/A"]
["Aaron Bartel","Aaron","Bartel",null,"Carry-Over","B. C. Excavating, LLC","Highway/Utility",null,"Elected"]
["Pat Harrison","Pat","Harrison",null,"1 Year","Kiewit Infrastructure West Co.","Heavy Industrial",null,"Appointed"]
["Brian Midyett","Brian","Midyett","Vice President","1 Year","STG Pacific, LLC","Heavy Industrial","Member-at-Large","Elected"]
["Carrie Jokiel","Carrie","Jokiel","Contractor At Large ","2 Year","ChemTrack Alaska, Inc.","Specialty",null,"Elected"]
["Mike Andersen","Mike","Andersen",null,"1 Year","DAMA Industrial LLC","Specialty",null,"Appointed"]
["Dan Hall","Dan","Hall",null,"Carry-Over","Knik Construction Co., Inc.","Heavy Industrial",null,"Elected"]
["Dave Johnson","Dave","Johnson","Associate Member","2 Year","Anchorage Sand & Gravel Co., Inc.","Associate",null,"Elected"]
["Regina Daniels","Regina","Daniels",null,"Carry-Over","Davis Block & Concrete","Specialty","Member-at-Large","Elected"]
["Dax Lauwers ","Dax","Lauwers","CLCR","1 Year","Marsh McLennan Agency","Associate",null,"Appointed - CLCR"]
["Derek Betts","Derek","Betts",null,"1 Year","Granite Construction Company","Highway/Utility",null,"Elected"]
["Gary Klebs","Gary","Klebs","Immediate Past President","2 Year","KLEBS Mechanical, Inc.","Specialty","Member-at-Large","Elected"]
["Mike Davis","Mike","Davis",null,"1 Year","GHEMM Company, Inc.","Building","Member-at-Large","Elected"]
["Saigen Harris","Saigen","Harris","Treasurer","Carry-Over","F & W Construction Co., Inc.","Building",null,"Elected"]
["Jeff Miller","Jeff","Miller",null,"1 Year","Cruz Construction, Inc.","Heavy Industrial","Member-at-Large","Elected"]
["Jim St. George","Jim","George",null,"1 Year","St. George Consulting","Associate",null,"Elected"]
["Toby Drake","Toby","Drake",null,"1 Year","Drake Construction, Inc.","Highway/Utility",null,"Appointed"]
["Kirk Currey","Kirk","Currey",null,"1 Year","Construction Machinery Industrial, LLC (CMI)","Associate",null,"Elected"]
["Kirstie Gray","Kirstie","Gray",null,"1 Year","Gray Services, LLC","Associate",null,"Elected"]
["Luke Blomfield","Luke","Blomfield",null,"2 Year","Davis Constructors & Engineers, Inc.","Building",null,"Elected"]
["Lynne Seville","Lynne","Seville",null,"1 Year","Parker, Smith & Feek, Inc.","Associate",null,"Elected"]
["Marcus Trivette","Marcus","Trivette","Secretary","2 Year","Brice, Inc.","Heavy Industrial",null,"Elected"]
["Troy Gray","Troy","Gray",null,"1 Year","Knik Construction Co., Inc.","Highway/Utility","Member-at-Large","Elected"]
["Mike T. Gould","Mike T.","Gould",null,"1 Year","Excel Construction, Inc.","Specialty",null,"Elected"]
["Sean Hickel","Sean","Hickel",null,"1 year","Roger Hickel Contracting, Inc.","Building",null,"Elected"]
["Tyler Loken","Tyler","Loken",null,"1 Year","Loken Construction, LLC","Specialty","Member-at-Large","Elected"]
["Steve Rowe","Steve","Rowe",null,"1 Year","Swalling General Contractors LLC","Heavy Industrial",null,"Elected"]
["Paul Kovach","Paul","Kovach",null,"1 Year","Spenard Builders Supply","Associate",null,"Elected"]
["Ron Pichler","Ron","Pichler",null,"Carry-Over","Denali Drilling, Inc.","Specialty",null,"Elected"]
["Cuauhtemoc Rodriguez","Cuauhtemoc","Rodriguez",null,"1 Year","Coldfoot Environmental Services, Inc.","Specialty","Member-at-Large","Elected"]
["Jason Nichols","Jason","Nichols",null,"1 Year","ASRC Construction","Building",null,"Appointed"]
["Matt Ketchum","Matt","Ketchum",null,"1 Year","K & H Civil Constructors, LLC","Highway/Utility","Member-at-Large","Elected"]
["Scott Vierra","Scott","Vierra",null,"1 Year","North Star Equipment Services","Associate",null,"Appointed"]
["David Shahnazarian","David","Shahnazarian",null,"1 Year","American Marine Corporation","Specialty","Member-at-Large","Elected"]
["Stacy Tomuro","Stacy","Tomuro",null,"1 Year","First National Bank Alaska","Associate",null,"Appointed"]
["Brennan Walsh","Brennan","Walsh",null,"1 Year","STG, Inc.","Heavy Industrial","Member-at-Large","Elected"]
["Tamie Taylor","Tamie","Taylor",null,"1 Year","Taylored Business Solutions, LLC","Associate",null,"Appointed"]
["Sarah Lefebvre","Sarah","Lefebvre","President","2 Year","Colaska Inc dba Exclusive Paving / University Redi Mix","Highway/Utility",null,"Elected"]
["Travis Malin","Travis","Malin",null,"1 Year","HC Contractors, Inc.","Highway/Utility",null,"Appointed"]
["John Szymik","John","Szymik",null,"1 Year","Hamilton Construction Alaska Co.","Highway/Utility",null,"Appointed"]
["Heather Sottosanti","Heather","Sottosanti",null,"1 Year","Neeser Construction, Inc.","Building","Member-at-Large","Elected"]
[]
["Notes"]
["Information reflects board as of the day of elections/appointments. It is not updated if the board member changes employers, board member's name changed, etc. "]
["Why are there 40 seats on the board this year? According to November 2021 Board elections minutes as well as the signed election reported results, with counting Carry-Over terms, there were 3 members elected for each division (Building, Highway/Utility, Heavy Industrial, and Specialty) (3x4 divisions=12) plus 6 associates totaling 18 elected members. The Member-at-Large vote added 12 more elected board members totaling 30 elected members. According to the December 2021 board appointment minutes, President Sarah Lefebvre appointed 6 contractor members and 3 associate members totaling 9 board appointments. The appointed 9 board members plus the 30 elected members totals 39 board seats. Plus the CLCR seat brings the total to 40 Directors. Beautifully done."]
["CLCR = Construction Leadership Council Representative Non-Voting Seat"]
["Gray = Current Life Board Member"]
["As of 2022, Dan Hall with Knik Construction completed 12 years on the board and graduated to Life Board status. Before moving Dan Hall to the Life Board list, he is completing the second year of his 2-year carry-over term. In the meantime, as is allowed with Life Board Directors, Troy Gray with Knik Construction was eligible to be nominated to the Board. Dan gives his voting rights to Troy. Troy is the single voter for Knik Construction. "]

{"sheet":"2020-2021 BoD","index":2,"n_rows":50,"n_cols":9,"rows_kept":50,"cut":false,"hidden":false,"merged":[[0,0,0,8],[46,0,46,8],[47,0,47,8],[48,0,48,8],[49,0,49,8],[45,0,45,8]]}
["2020-2021 Board of Directors"]
["Full Name","First Name","Last Name","Title","Term","Business Name","Division","Member-at-Large","Elected/Appointed"]
["Aaron Bartel","Aaron","Bartel","","2 Year","B. C. Excavating, LLC (B C Excavating) (BC Excavating)","Highway/Utility","","Elected"]
["Brennan Walsh","Brennan","Walsh","","1 Year","STG, Inc.","Heavy Industrial","","Elected"]
["Brian Midyett","Brian","Midyett","Secretary","1 Year","STG Pacific, LLC","Heavy Industrial","Member-at-Large","Elected"]
["Carrie Jokiel","Carrie","Jokiel","","1 Year","ChemTrack Alaska, Inc.","Specialty","Member-at-Large","Elected"]
["Chris Hamre","Chris","Hamre","","1 Year","Denali General Contractors, Inc.","Building","Member-at-Large","Elected"]
["Chris Reilly","Chris","Reilly","Immediate Past President","1 Year","Rain Proof Roofing","Specialty","","Elected"]
["Chrys Fleming","Chrys","Fleming","","1 Year","Alcan Electrical & Engineering, Inc.","Specialty","Member-at-Large","Elected"]
["Cuauhtemoc Rodriguez","Cuauhtemoc","Rodriguez","","1 Year","Coldfoot Environmental Services, Inc.","Specialty","","Elected"]
["Dan Hall","Dan","Hall","","2 Year","Knik Construction Co., Inc.","Heavy Industrial","","Elected"]
["Dave Johnson","Dave","Johnson","","1 Year","Anchorage Sand & Gravel Co., Inc.","Associate","","Elected"]
["David Shahnazarian","David","Shahnazarian","","1 Year","American Marine Corporation","Specialty","","Appointed"]
["Dax Lauwers","Dax","Lauwers","CLCR","1 Year","Marsh & McLennan Agency","Associate","","Appointed - CLCR"]
["Deirdre Coots","Deirdre","Coots","","1 Year","Global Diving & Salvage, Inc.","Specialty","","Appointed"]
["Derek Betts","Derek","Betts","","1 Year","Granite Construction Company","Highway/Utility","","Elected"]
["Gary Klebs","Gary","Klebs","President","Carry-Over","KLEBS Mechanical, Inc.","Specialty","","Elected"]
["Heather Sottosanti","Heather","Sottosanti","","1 Year","Neeser Construction, Inc.","Building","Member-at-Large","Elected"]
["Jeff Miller","Jeff","Miller","","Carry-Over","Cruz Construction, Inc.","Heavy Industrial","Member-at-Large","Elected"]
["Jim St. George","Jim","George","","1 Year","St. George Consulting","Associate","","Elected"]
["John Sommer","John","Sommer","","1 Year","Tutka, LLC","Highway/Utility","Member-at-Large","Elected"]
["John Szymik","John","Szymik","","1 Year","Hamilton Construction Alaska Co.","Highway/Utility","","Appointed"]
["Kirk Currey","Kirk","Currey","Associate Member","Carry-Over","Construction Machinery Industrial, LLC (CMI)","Associate","","Elected"]
["Kirstie Gray","Kirstie","Gray","","1 Year","Gray Services, LLC","Associate","","Appointed"]
["Luke Blomfield","Luke","Blomfield","","Carry-Over","Davis Constructors & Engineers, Inc.","Building","","Elected"]
["Lynne Seville","Lynne","Seville","","1 Year","Parker, Smith & Feek, Inc.","Associate","","Elected"]
["Marcus Trivette","Marcus","Trivette","Treasurer","Carry-Over","Brice, Inc.","Heavy Industrial","","Elected"]
["Mike Andersen","Mike","Andersen","","1 Year","DAMA Industrial LLC","Specialty","","Appointed"]
["Mike Davis","Mike","Davis","","1 Year","GHEMM Company, Inc.","Building","Member-at-Large","Elected"]
["Mike T. Gould","Mike T.","Gould","","1 Year","Excel Construction, Inc.","Specialty","Member-at-Large","Elected"]
["Paul Kovach","Paul","Kovach","","1 Year","Spenard Builders Supply","Associate","","Appointed"]
["Regina Daniels","Regina","Daniels","","2 Year","Davis Block & Concrete","Specialty","","Elected"]
["Ron Pichler","Ron","Pichler","","2 Year","Denali Drilling, Inc.","Specialty","Member-at-Large","Elected"]
["Saigen Harris","Saigen","Harris","Contractor-at-Large","2 Year","F & W Construction Co., Inc. (F&W)","Building","","Elected"]
["Sarah Lefebvre","Sarah","Lefebvre","Vice President","Carry-Over","Exclusive Paving","Highway/Utility","","Elected"]
["Scott Vierra","Scott","Vierra","","1 Year","N C Machinery Co. (NC Machinery)","Associate","","Elected"]
["Sean Hickel","Sean","Hickel","","1 Year","Roger Hickel Contracting, Inc.","Building","","Elected"]
["Stacy Tomuro","Stacy","Tomuro","","1 Year","First National Bank Alaska","Associate","","Elected"]
["Tamie Taylor","Tamie","Taylor","","1 Year","Taylored Business Solutions, LLC","Associate","","Appointed"]
["Toby Drake","Toby","Drake","","1 Year","Drake Construction, Inc.","Building","","Appointed"]
["Tom Clark","Tom","Clark","","1 Year","Clark Management","Heavy Industrial","","Appointed"]
["Travis Malin","Travis","Malin","","1 year","HC Contractors, Inc.","Highway/Utility","Member-at-Large","Elected"]
["Tyler Loken","Tyler","Loken","","1 Year","Loken Construction, LLC","Specialty","Member-at-Large","Elected"]
[]
["Notes"]
["Information reflects board as of the day of elections/appointments. It is not updated if the board member changes employers, board member's name changed, etc. "]
["Why are there 41 seats on the board this year? According to November 2020 Board elections minutes as well as the signed election reported results, with counting Carry-Over terms, there were 3 members elected for each division (Building, Highway/Utility, Heavy Industrial, and Specialty) (3x4 divisions=12) plus 6 associates totaling 18 elected members. The Member-at-Large vote added 12 more elected board members totaling 30. Chris Reilly was not amongst those elected. During the Executive Board election, as 2020 President, Chris Reilly's E-Board seat moved to Immediate Past President which brought the board up to 31 elected members. According to the December 2020 E-Board Meeting minutes, President Gary Klebs appointed 6 contractor members and 3 associate members totaling 9 board appointments. The appointed 9 board members plus the 31 elected members totals 40 board seats. Plus the CLCR seat brings the total to 41 Directors. "]
["What happened with Chris Reilly? In preparing for elections, AGC staff is to provide the Nomination/Board Development Committee a report of every member company's employees' information based off each individual profile in the AGC database (about 1800 individuals). AGC governing documents requires the committee to ensure those approved to be on the election ballot keep the required balance of contractors and associates as well as only having one employee representing a single company. In this member report to the committee, AGC is to identify Life board members as well as Carry-Over board members who automatically have a seat on the board without requiring another election. During this sweeping action, Chris Reilly was grayed out as a Life board member, which he is as of Nov. 2016, and therefore was not considered to be listed on the election ballot. However, Chris Reilly was also on the Executive board and during the Executive board elections he was nominated and approved to move up in seats. This happened with Chris Reilly for the board terms 2020-2021, 2019-2020, 2018-2019, and 2017-2018. For board term 2016-2017, in November 2016 Chris Reilly was both a Carry-Over into 2017 as well as having completed his 12th year on the board and graduated to Life board status. Because Chris was completing his 2-year term, Chris' spot on the election ballot was reserved as \"Carry-Over\" and he was included in the count of the 3 elected in his division. His Carry-Over status prevented him from not being considered due to his new Life board status. Per the board elections minutes, the same life board circumstances happened with Mike Swalling for his 2013-2014 and 2014-2015 Executive board seat as well as Tony Johansen for his 2015-2016. They both were not listed on the ballot for election and elected during executive board elections. "]
["CLCR = Construction Leadership Council Representative Non-Voting Seat"]
["Gray = Current Life Board Member"]

{"sheet":"2019-2020 BoD","index":3,"n_rows":49,"n_cols":9,"rows_kept":49,"cut":false,"hidden":false,"merged":[[48,0,48,8],[0,0,0,8],[45,0,45,8],[46,0,46,8],[47,0,47,8],[44,0,44,8]]}
["2019-2020 Board of Directors"]
["Full Name","First Name","Last Name","Title","Term","Business Name","Division","Member-at-Large","Elected/Appointed"]
["Aaron Bartel","Aaron","Bartel","","Carry-Over","B. C. Excavating, LLC (B C Excavating) (BC Excavating)","Highway-Utility","","Elected "]
["Brennan Walsh","Brennan","Walsh","","1 Year","STG, Inc.","Heavy Industrial","Member-at-Large","Elected "]
["Brian Midyett","Brian","Midyett","Treasurer","1 Year","STG Pacific, LLC","Heavy Industrial","","Elected "]
["Carrie Jokiel","Carrie","Jokiel","","Carry-Over","ChemTrack Alaska, Inc.","Specialty","Member-at-Large","Elected "]
["Chad Wilson","Chad","Wilson","CLCR","1 Year","Spenard Builders Supply","Associate","","Appointed - CLCR"]
["Chris Hamre","Chris","Hamre","","1 Year","Denali General Contractors, Inc.","Building","","Appointed"]
["Chris Reilly","Chris","Reilly","President","1 Year","Rain Proof Roofing","Specialty","","Elected "]
["Chrys Fleming","Chrys","Fleming","","1 Year","Alcan Electrical & Engineering, Inc.","Specialty","Member-at-Large","Elected "]
["Cuauhtemoc Rodriguez","Cuauhtemoc","Rodriguez","Immediate Past President","1 Year","Coldfoot Environmental Services, Inc.","Specialty","","Elected "]
["Dan Hall","Dan","Hall","","Carry-Over","Knik Construction Co., Inc.","Heavy Industrial","","Elected "]
["Dave Johnson","Dave ","Johnson","","1 Year","Anchorage Sand & Gravel Co., Inc.","Associate","","Elected "]
["David Shahnazarian","David","Shahnazarian","","1 Year","American Marine Corporation","Specialty","Member-at-Large","Elected "]
["Derek Betts","Derek","Betts","","1 Year","Granite Construction Company","Highway/Utility","","Elected "]
["Gary Klebs","Gary","Klebs","Vice President","2 Year","KLEBS Mechanical, Inc.","Specialty","","Elected "]
["George Tipner","George","Tipner","","1 Year","Orion Marine Contractors, Inc.","Heavy Industrial","Member-at-Large","Elected "]
["Heather Sottosanti","Heather","Sottosanti","","1 Year","Neeser Construction, Inc.","Building","Member-at-Large","Elected "]
["Jason Clark","Jason","Clark","","1 Year","Interior Alaska Roofing, Inc.","Specialty","","Appointed"]
["Jeff Miller","Jeff","Miller","","2 Year","Cruz Construction, Inc.","Heavy Industrial","Member-at-Large","Elected "]
["Jim St. George","Jim","George","","1 Year","St. George Consulting","Associate","","Appointed "]
["John Sommer","John","Sommer","","1 Year","Tutka, LLC","Highway/Utility","","Appointed"]
["Kirk Currey","Kirk","Currey","Associate Member","2 Year","Construction Machinery Industrial, LLC (CMI)","Associate","","Elected "]
["Kirstie Gray","Kirstie","Gray","","1 Year","Gray Services, LLC","Associate","","Elected "]
["Luke Blomfield","Luke","Blomfield","","2 Year","Davis Constructors & Engineers, Inc.","Building","","Elected "]
["Lynne Seville","Lynne","Seville","","1 Year","Parker, Smith & Feek, Inc.","Associate","","Elected "]
["Marcus Trivette","Marcus","Trivette","Contractor-at-Large","2 Year","Brice, Inc.","Heavy Industrial","","Elected "]
["Mike Andersen","Mike","Andersen","","1 Year","DAMA Industrial LLC","Specialty","","Appointed"]
["Mike Davis","Mike","Davis","","1 Year","GHEMM Company, Inc.","Building","Member-at-Large","Elected "]
["Mike T. Gould","Mike","Gould","","1 Year","Excel Construction, Inc.","Specialty","Member-at-Large","Elected "]
["Paul Kovach","Paul","Kovach","","1 Year","Spenard Builders Supply","Associate","","Appointed"]
["Regina Daniels","Regina","Daniels","","Carry-Over","Davis Block & Concrete","Specialty","","Elected "]
["Ron Pichler","Ron","Pichler","","1 Year","Denali Drilling, Inc.","Specialty","Member-at-Large","Elected "]
["Ron Smith","Ron","Smith","","1 Year","AK Constructors, LLC","Specialty","Member-at-Large","Elected "]
["Saigen Harris","Saigen","Harris","","Carry-Over","F & W Construction Co., Inc. (F&W)","Building","","Elected "]
["Sarah Lefebvre","Sarah","Lefebvre","Secretary","2 Year","Exclusive Paving","Highway/Utility","","Elected "]
["Scott Vierra","Scott","Vierra","","1 Year","N C Machinery Co. (NC Machinery)","Associate","","Elected "]
["Sean Hickel","Sean","Hickel","","1 Year","Roger Hickel Contracting, Inc.","Building","","Elected "]
["Stacy Tomuro","Stacy","Tomuro","","1 Year","First National Bank Alaska","Associate","","Elected "]
["Steve Rowe","Steve","Rowe","","1 Year","Swalling General Contractors LLC","Highway/Utility","Member-at-Large","Elected "]
["Tamie Taylor","Tamie","Taylor","","1 Year","Taylored Business Solutions, LLC","Associate","","Appointed"]
["Tyler Loken","Tyler","Loken","","1 Year","Loken Construction, LLC","Specialty","","Appointed"]
[]
["Notes"]
["Information reflects board as of the day of elections/appointments. It is not updated if the board member changes employers, board member's name changed, etc. "]
["Why are there 40 seats on the board this year? According to November 2019 AGC Board meeting minutes as well as the elections ballots, there were 3 members voted for each division (Building, Highway/Utility, Heavy Industrial, and Specialty) plus 6 associates totaling 18 elected members. The Member-at-Large vote added 12 more elected board members totaling 30. Chris Reilly was not amongst those voted. During the E-Board election, Chris Reilly was nominated and approved to move up the E-Board seats to President which brought board up to 31 elected members. According to the December 2019 E-Board Meeting minutes, President Chris Rielly was authorized to appoint up to 6 contractor members and 3 associate members to the board. Chris chose to appointed 5 contractor members and 3 assoiciate members totaling 8 board appointments. The appointed 8 board members plus the 31 elected board members totals 39 board seats. Plus the CLCR seat brings the total to 40 Board of Directors. "]
["What happened with Chris Reilly? In preparing for elections, AGC staff is to provide the Nomination/Board Development Committee a report of every member company's employees' information based off each individual profile in the AGC database (about 1800 individuals). AGC governing documents requires the committee to ensure those approved to be on the election ballot keep the required balance of contractors and associates as well as only having one employee representing a single company. In this member report to the committee, AGC is to identify Life board members as well as Carry-Over board members who automatically have a seat on the board without requiring another election. During this sweeping action, Chris Reilly was grayed out as a Life board member, which he is as of Nov. 2016, and therefore was not considered to be listed on the election ballot. However, Chris Reilly was also on the Executive board and during the Executive board elections he was nominated and approved to move up in seats. This happened with Chris Reilly for the board terms 2020-2021, 2019-2020, 2018-2019, and 2017-2018. For board term 2016-2017, in November 2016 Chris Reilly was both a Carry-Over into 2017 as well as having completed his 12th year on the board and graduated to Life board status. Because Chris was completing his 2-year term, Chris' spot on the election ballot was reserved as \"Carry-Over\" and he was included in the count of the 3 elected in his division. His Carry-Over status prevented him from not being considered due to his new Life board status. Per the board elections minutes, the same life board circumstances happened with Mike Swalling for his 2013-2014 and 2014-2015 Executive board seat as well as Tony Johansen for his 2015-2016. They both were not listed on the ballot for election and elected during executive board elections. "]
["CLCR = Construction Leadership Council Representative Non-Voting Seat"]
["Gray = Current Life Board Member"]

{"sheet":"2018-2019 BoD","index":4,"n_rows":51,"n_cols":9,"rows_kept":51,"cut":false,"hidden":false,"merged":[[49,0,49,8],[50,0,50,8],[0,0,0,8],[47,0,47,8],[48,0,48,8],[46,0,46,8],[45,0,45,8]]}
["2018-2019 Board of Directors"]
["Full Name","First Name","Last Name","Title","Term","Business Name","Division","Member-at-Large","E/A"]
["Aaron Bartel","Aaron","Bartel","","2 Year","B. C. Excavating, LLC","Highway/Utility","","Elected"]
["Ben Ryan","Ben","Ryan","","1 Year","Ryan Air","Associate","","Appointed"]
["Brian Midyett","Brian","Midyett","","1 Year","STG Pacific, LLC","Heavy Industrial","Member-at-Large","Elected"]
["Carrie Jokiel","Carrie","Jokiel","","2 Year","ChemTrack Alaska, Inc.","Specialty","Member-at-Large","Elected"]
["Chad Wilson","Chad","Wilson","CLCR","1 Year","Spenard Builders Supply","Associate","","Appointed - CLCR"]
["Chris Hamre","Chris","Hamre","","1 Year","Denali General Contractors, Inc.","Building","","Appointed"]
["Chris Reilly","Chris","Reilly","Vice President","1 Year","Rain Proof Roofing","Specialty","","Elected"]
["Chrys Fleming","Chrys","Fleming","","1 Year","Alcan Electrical & Engineering, Inc.","Specialty","","Appointed"]
["Cuauhtemoc Rodriguez","Cuauhtemoc","Rodriguez","President","Carry Over","Coldfoot Environmental Services, Inc.","Specialty","","Elected"]
["Dan Hall","Dan","Hall","","2 Year","Knik Construction Co., Inc.","Heavy Industrial","","Elected"]
["Dave Johnson","Dave","Johnson","","1 Year","Anchorage Sand & Gravel Co., Inc.","Associate","","Elected"]
["David Shahnazarian","David","Shahnazarian","","1 Year","American Marine Corporation","Specialty","Member-at-Large","Elected"]
["Derek Betts","Derek","Betts","","1 Year","Granite Construction Company","Highway/Utility","","Elected"]
["Gary Klebs","Gary","Klebs","Treasurer","1 Year","KLEBS Mechanical, Inc.","Specialty","","Elected"]
["George Tipner","George","Tipner","","1 Year","Orion Marine Contractors, Inc.","Heavy Industrial","","Appointed"]
["Heather Sottosanti","Heather","Sottosanti","","1 Year","Neeser Construction, Inc.","Building","Member-at-Large","Elected"]
["Jeff Miller","Jeff","Miller","","1 Year","Cruz Construction, Inc.","Heavy Industrial","Member-at-Large","Elected"]
["Jenith Flynn","Jenith","Flynn","","Carry Over","Davis Constructors & Engineers, Inc.","Building","","Elected"]
["Jesse Peterson","Jesse","Peterson","","1 Year","Pruhs Corporation","Highway/Utility","Member-at-Large","Elected"]
["Jim St. George","Jim","George","Immediate Past President","Carry Over","St. George Consulting","Heavy Industrial","","Elected"]
["Joe Jolley","Joe","Jolley","","1 Year","Cornerstone General Contractors, Inc.","Building","Member-at-Large","Elected"]
["John Sommer","John","Sommer","","1 Year","Tutka, LLC","Highway/Utility","","Appointed"]
["Kelly Layman","Kelly","Layman","","1 Year","Marsh & McLennan Agency","Associate","","Elected"]
["Kiel Beloy","Kiel","Beloy","","1 Year","Kiewit Building Group","Building","Member-at-Large","Elected"]
["Kirk Currey","Kirk","Currey","","1 Year","Construction Machinery Industrial, LLC (CMI)","Associate","","Elected"]
["Lael Fullford","Lael","Fullford","","1 Year","Fullford Electric, Inc.","Specialty","","Appointed"]
["Lynne Seville","Lynne","Seville","Associate Member","Carry Over","Parker, Smith & Feek, Inc.","Associate","","Elected"]
["Marcus Trivette","Marcus","Trivette","","1 Year","Brice, Inc.","Heavy Industrial","","Elected"]
["Mike Davis","Mike","Davis","","1 Year","GHEMM Company, Inc.","Building","Member-at-Large","Elected"]
["Regina Daniels","Regina","Daniels","Contractor-at-Large","2 Year","Davis Block & Concrete","Specialty","","Elected"]
["Ron Pichler","Ron","Pichler","","1 Year","Denali Drilling, Inc.","Specialty","Member-at-Large","Elected"]
["Ron Smith","Ron","Smith","","Carry Over","AK Constructors, LLC","Building","Member-at-Large","Elected"]
["Saigen Harris","Saigen","Harris","","2 Year","F & W Construction Co., Inc.","Building","","Elected"]
["Sarah Lefebvre","Sarah","Lefebvre","Secretary","Carry Over","Exclusive Paving","Highway/Utility","","Elected"]
["Scott Vierra","Scott","Vierra","","1 Year","North Star Equipment Services","Associate","","Elected"]
["Sean Hickel","Sean","Hickel","","1 Year","Roger Hickel Contracting, Inc.","Building","","Elected"]
["Stacy Tomuro","Stacy","Tomuro","","1 Year","First National Bank Alaska","Associate","","Appointed"]
["Steve Rowe","Steve","Rowe","","1 Year","Swalling General Contractors LLC","Highway/Utility","Member-at-Large","Elected"]
["Teri Gunter","Teri","Gunter","","1 Year","Senco Alaska, Inc.","Associate","","Elected"]
["Thomas Gross","Thomas","Gross","","1 Year","T. J.'s Landclearing, Inc.","Specialty","","Appointed"]
["Traci Johnson","Traci","Johnson","","1 Year","Spenard Builders Supply","Associate","","Appointed"]
[]
["Notes"]
["Information reflects board as of the day of elections/appointments. It is not updated if the board member changes employers, board member's name changed, etc. "]
["Why are there more people on the board this year than in years past? On Friday April 20th, 2018 during the Board and General Membership Meeting, a motion was proposed, seconded and passed to increase the Board to 40 members by adding 3 additional elected Associate Members. On April 25th, 2018, the proposed amendments to AGC's Bylaws were sent to AGC Contractor membership requesting those who oppose to respond within 30 days. Less than 1/3 of the Contractor membership responded with opposistion. Therefore, the changes were considered adopted and approved and took effect for the Nov. 2018 board elections. "]
["Why are there 41 seats on the board this year? According to November 2018 AGC Board meeting minutes as well as the signed elections reported results, there were 3 members voted for each division (Building, Highway/Utility, Heavy Industrial, and Specialty) plus 6 associates totaling 18 elected members. The Member-at-Large vote added 12 more elected board members totaling 30. Chris Reilly was not amongst those voted. During the E-Board election, Chris Reilly was nominated and approved to move up the E-Board seats to Vice President which brought board up to 31 elected members. According to the December 2018 E-Board Meeting minutes, President Cuauhtemoc ‘Rod’ Rodriguez appointed 6 contractor members and 3 assoiciate members totaling 9 board appointments. The appointed 9 board members plus the 31 elected members totals 40 board seats. Plus the CLCR seat brings the total to 41 Board of Directors. "]
["What happened with Chris Reilly? In preparing for elections, AGC staff is to provide the Nomination/Board Development Committee a report of every member company's employees' information based off each individual profile in the AGC database (about 1800 individuals). AGC governing documents requires the committee to ensure those approved to be on the election ballot keep the required balance of contractors and associates as well as only having one employee representing a single company. In this member report to the committee, AGC is to identify Life board members as well as Carry-Over board members who automatically have a seat on the board without requiring another election. During this sweeping action, Chris Reilly was grayed out as a Life board member, which he is as of Nov. 2016, and therefore was not considered to be listed on the election ballot. However, Chris Reilly was also on the Executive board and during the Executive board elections he was nominated and approved to move up in seats. This happened with Chris Reilly for the board terms 2020-2021, 2019-2020, 2018-2019, and 2017-2018. For board term 2016-2017, in November 2016 Chris Reilly was both a Carry-Over into 2017 as well as having completed his 12th year on the board and graduated to Life board status. Because Chris was completing his 2-year term, Chris' spot on the election ballot was reserved as \"Carry-Over\" and he was included in the count of the 3 elected in his division. His Carry-Over status prevented him from not being considered due to his new Life board status. Per the board elections minutes, the same life board circumstances happened with Mike Swalling for his 2013-2014 and 2014-2015 Executive board seat as well as Tony Johansen for his 2015-2016. They both were not listed on the ballot for election and elected during executive board elections. "]
["CLCR = Construction Leadership Council Representative Non-Voting Seat"]
["Gray = Current Life Board Member"]

{"sheet":"2017-2018 BoD","index":5,"n_rows":42,"n_cols":9,"rows_kept":42,"cut":false,"hidden":false,"merged":[[0,0,0,8],[38,0,38,8],[39,0,39,8],[40,0,40,8],[41,0,41,8],[37,0,37,8]]}
["2017-2018 Board of Directors"]
["Contact Name","First Name","Last Name","Title","Term","Business Name","Division","Member-at-Large","E/A"]
["Aaron Bartel","Aaron","Bartel","","1 Year","B. C. Excavating, LLC","Highway/Utility","Member-at-Large","Elected"]
["Ben Ryan","Ben","Ryan","","1 Year","Ryan Air","Associate","","Appointed"]
["Brian Midyett","Brian","Midyett","","1 Year","STG Pacific, LLC","Heavy Industrial","Member-at-Large","Elected"]
["C. John Eng","C. John","Eng","","1 Year","High Point Construction, Inc.","Building","Member-at-Large","Elected"]
["Carrie Jokiel","Carrie","Jokiel","","1 Year","ChemTrack Alaska, Inc.","Specialty","","Elected"]
["Chris Reilly","Chris","Reilly","Secretary","1 Year","Rain Proof Roofing","Specialty","","Elected"]
["Cuauhtemoc Rodriguez","Cuauhtemoc","Rodriguez","Vice President","2 Year","Coldfoot Environmental Services, Inc.","Specialty","","Elected"]
["Dan Hall","Dan","Hall","Immediate Past President","Carry Over","Knik Construction Co., Inc.","Heavy Industrial","","Elected"]
["Dana Pruhs","Dana","Pruhs","","Carry Over","Pruhs Corporation","Highway/Utility","","Elected"]
["David R. Hale","David R.","Hale","","1 Year","Hale & Associates, Inc.","Associate","","Appointed"]
["David Shahnazarian","David","Shahnazarian","","1 Year","American Marine Corporation","Specialty","Member-at-Large","Elected"]
["Derek Betts","Derek","Betts","","1 Year","Granite Construction Company","Highway/Utility","","Elected"]
["Gary Klebs","Gary","Klebs","Contractor-at-Large","Carry Over","KLEBS Mechanical, Inc.","Specialty","Member-at-Large","Elected"]
["Heather Sottosanti","Heather","Sottosanti","","1 Year","Neeser Construction, Inc.","Building","Member-at-Large","Elected"]
["James St. George","James","St. George","President","2 Year","STG, Inc.","Heavy Industrial","","Elected"]
["Jenith Flynn","Jenith","Flynn","","2 Year","Davis Constructors & Engineers, Inc.","Building","","Elected"]
["Jesse Peterson","Jesse","Peterson","","1 Year","Hamilton Construction Alaska Co.","Highway/Utility","Member-at-Large","Elected"]
["Joe Jolley","Joe","Jolley","","1 Year","Cornerstone General Contractors, Inc.","Building","Member-at-Large","Elected"]
["John Sommer","John","Sommer","","1 Year","Tutka, LLC","Highway/Utility","Member-at-Large","Elected"]
["Kelly Layman","Kelly","Layman","","1 Year","Marsh & McLennan Agency","Associate","","Elected"]
["Kiel Beloy","Kiel","Beloy","","1 Year","Kiewit Building Group","Building","","Appointed"]
["Lynne Seville","Lynne","Seville","Associate Member","1 Year","Parker, Smith & Feek, Inc.","Associate","","Elected"]
["Marcus Trivette","Marcus","Trivette","","1 Year","Brice, Inc.","Heavy Industrial","","Elected"]
["Mike Davis","Mike","Davis","","1 Year","GHEMM Company, Inc.","Building","Member-at-Large","Elected"]
["Regina Daniels","Regina","Daniels","","Carry Over","Davis Block & Concrete","Specialty","","Elected"]
["Ron Smith","Ron","Smith","","2 Year","AK Constructors, LLC","Building","Member-at-Large","Elected"]
["Saigen Harris","Saigen","Harris","","Carry Over","F & W Construction Co., Inc.","Building","","Elected"]
["Sarah Lefebvre","Sarah","Lefebvre","Treasurer","2 Year","Exclusive Paving","Highway/Utility","","Elected"]
["Sean Hickel","Sean","Hickel","","1 Year","Roger Hickel Contracting, Inc.","Building","","Elected"]
["Shannon Bridwell","Shannon","Bridwell","CLCR","1 Year","STG, Inc.","Heavy Industrial",null,"Appointed - CLCR"]
["Stacy Tomuro","Stacy","Tomuro","","1 Year","First National Bank Alaska","Associate","","Appointed"]
["Steve Rowe","Steve","Rowe","","1 Year","Swalling General Contractors LLC","Highway/Utility","Member-at-Large","Elected"]
["Teri Gunter","Teri","Gunter","","1 Year","Senco Alaska, Inc.","Associate","","Elected"]
[]
["Notes"]
["Information reflects board as of the day of elections/appointments. It is not updated if the board member changes employers, board member's name changed, etc. "]
["Why are there 33 seats on the board this year? According to November 2017 AGC Board meeting minutes, there were 3 members voted for each division (Associate, Building, Highway/Utility, Heavy Industrial, and Specialty) totaling 15 elected members. The Member-at-Large vote added 12 more elected board members totaling 27. Chris Reilly was not amongst those voted. During the E-Board election, Chris Reilly was nominated to move up the E-Board seats to secretary which was approved bringing the board up to 28 elected members. According to the December 2017 E-Board Meeting minutes, President Jim St. George had the power to appoint up to ) contractor members and 3 assoiciate members totaling 9 board appointments. President Jim St. George appointed 4 out of the allowed 9 board appointments. Jim St. George's appointed 4 board members plus the 28 elected members totals 32 board seats. Plus the CLCR seat brings the total to 33 Board of Directors. "]
["What happened with Chris Reilly? In preparing for elections, AGC staff is to provide the Nomination/Board Development Committee a report of every member company's employees' information based off each individual profile in the AGC database (about 1800 individuals). AGC governing documents requires the committee to ensure those approved to be on the election ballot keep the required balance of contractors and associates as well as only having one employee representing a single company. In this member report to the committee, AGC is to identify Life board members as well as Carry-Over board members who automatically have a seat on the board without requiring another election. During this sweeping action, Chris Reilly was grayed out as a Life board member, which he is as of Nov. 2016, and therefore was not considered to be listed on the election ballot. However, Chris Reilly was also on the Executive board and during the Executive board elections he was nominated and approved to move up in seats. This happened with Chris Reilly for the board terms 2020-2021, 2019-2020, 2018-2019, and 2017-2018. For board term 2016-2017, in November 2016 Chris Reilly was both a Carry-Over into 2017 as well as having completed his 12th year on the board and graduated to Life board status. Because Chris was completing his 2-year term, Chris' spot on the election ballot was reserved as \"Carry-Over\" and he was included in the count of the 3 elected in his division. His Carry-Over status prevented him from not being considered due to his new Life board status. Per the board elections minutes, the same life board circumstances happened with Mike Swalling for his 2013-2014 and 2014-2015 Executive board seat as well as Tony Johansen for his 2015-2016. They both were not listed on the ballot for election and elected during executive board elections. "]
["CLCR = Construction Leadership Council Representative Non-Voting Seat"]
["Gray = Current Life Board Member"]

{"sheet":"2016-2017 BoD","index":6,"n_rows":45,"n_cols":9,"rows_kept":45,"cut":false,"hidden":false,"merged":[[0,0,0,8],[42,0,42,8],[43,0,43,8],[44,0,44,8],[41,0,41,8]]}
["2016-2017 Board of Directors"]
["Full Name","First Name","Last Name","Title","Term","Business Name","Dvision","Member-at-Large","E/A"]
["Aaron Bartel","Aaron","Bartel",null,"1-Year","B. C. Excavating, LLC","Highway/Utility",null,"Appointed"]
["Ben Ryan","Ben","Ryan",null,"1-Year","Ryan Air","Associate",null,"Appointed"]
["Billy Rosseau","Billy","Rosseau",null,"1-Year","Advanced Blasting Services, LLC","Specialty",null,"Appointed"]
["Brian Midyett","Brian","Midyett",null,"1-Year","STG Pacific, LLC","Building","Member-at-Large","Elected"]
["Bryce Erickson","Bryce","Erickson",null,"1-Year","Brice, Inc., Bryce Erickson Consulting","Heavy Industrial","Member-at-Large","Elected"]
["C. John Eng","C. John","Eng",null,"1-Year","High Point Construction, Inc.","Building",null,"Appointed"]
["Carrie Jokiel","Carrie","Jokiel",null,"1-Year","ChemTrack Alaska, Inc.","Specialty","Member-at-Large","Elected"]
["Chris Reilly","Chris","Reilly","Treasurer","Carry-Over","Rain Proof Roofing","Specialty",null,"Elected"]
["Cuauhtemoc Rodriguez","Cuauhtemoc","Rodriguez","Secretary","1-Year","Coldfoot Environmental Services, Inc.","Specialty","Member-at-Large","Elected"]
["Dan Hall","Dan","Hall","President","2-Year","Knik Construction Co., Inc.","Heavy Industrial",null,"Elected"]
["Dana Pruhs","Dana","Pruhs","Immediate Past President","2-Year","Pruhs Construction Co. LLC","Highway/Utility",null,"Elected"]
["Dave Johnson","Dave","Johnson","Associate Member","1-Year","Anchorage Sand & Gravel Co.","Associate",null,"Elected"]
["David Hale","David","Hale",null,"1-Year","Hale & Associates, Inc.","Associate",null,"Elected"]
["David Shahnazarian","David","Shahnazarian",null,"1-Year","American Marine Corporation","Specialty",null,"Appointed"]
["Derek Betts","Derek","Betts",null,"1-Year","Granite Construction Company","Highway/Utility",null,"Elected"]
["Earl Andersen","Earl","Andersen",null,"1-Year","Grazzini Brothers & Company","Specialty","Member-at-Large","Elected"]
["Eryn Jones","Eryn","Jones","CLCR","1-Year","Knik Construction Co., Inc.","Heavy Industrial",null,"Appointed"]
["Gary Klebs","Gary","Klebs",null,"2-Year","KLEBS Mechanical, Inc.","Specialty","Member-at-Large","Elected"]
["Jason Davis","Jason","Davis",null,"1-Year","Turnagain Marine Construction","Heavy Industrial","Member-at-Large","Elected"]
["Jaysen Mathiesen","Jaysen","Mathiesen",null,"1-Year","M-Alaska Construction, LLC","Building",null,"Appointed"]
["Jenith Flynn","Jenith","Flynn",null,"1-Year","Davis Constructors & Engineers, Inc.\t","Building","Member-at-Large","Elected"]
["Jim St. George","Jim","St. George","Vice-President","Carry-Over","St. George Consulting","Heavy Industrial",null,"Elected"]
["Kirk Currey","Kirk","Currey",null,"1-Year","Construction Machinery Industrial, LLC (CMI)","Associate",null,"Appointed"]
["Marcus Trivette","Marcus","Trivette",null,"1-Year","Brice, Inc.","Heavy Industrial",null,"Elected"]
["Mark Erickson","Mark","Erickson",null,"1-Year","Mass Excavation","Highway/Utility","Member-at-Large","Elected"]
["Meg Nordale","Meg","Nordale",null,"Carry-Over","GHEMM Company, Inc.","Building",null,"Elected"]
["Michelle Holland","Michelle","Holland",null,"Carry-Over","Holland Roofing Co., Inc.","Specialty","Member-at-Large","Elected"]
["Mike T. Gould","Mike T.","Gould",null,"1-Year","Excel Construction, Inc.","Specialty",null,"Appointed"]
["Regina Daniels","Regina","Daniels",null,"2-Year","Davis Block & Concrete","Specialty",null,"Elected"]
["Richard Green","Richard","Green",null,"1-Year","Spenard Builders","Associate",null,"Elected"]
["Robert Cummings","Robert","Cummings",null,"1-Year","Denali Mechanical, Inc.","Specialty","Member-at-Large","Elected"]
["Ron Smith","Ron","Smith",null,"1-Year","AK Constructors, LLC, AK Supply, Inc.","Building",null,"Elected"]
["Saigen Harris","Saigen","Harris",null,"2-Year","F & W Construction Co., Inc.","Building",null,"Elected"]
["Sarah Lefebvre","Sarah","Lefebvre","Contractor-at-Large","Carry-Over","Exclusive Paving, University Redi Mix","Highway/Utility",null,"Elected"]
["Scott Bringmann","Scott","Bringmann",null,"1-Year","Alcan Electrical & Engineering, Inc.","Specialty",null,"Elected"]
["Sean Hickel","Sean","Hickel",null,"1-Year","Roger Hickel Contracting, Inc.","Building","Member-at-Large","Elected"]
["Stacy Tomuro","Stacy","Tomuro",null,"1-Year","First National Bank Alaska","Associate",null,"Appointed"]
[]
["Notes"]
["Information reflects board as of the day of elections/appointments. It is not updated if the board member changes employers, board member's name changed, etc. "]
["What happened with Chris Reilly? In preparing for elections, AGC staff is to provide the Nomination/Board Development Committee a report of every member company's employees' information based off each individual profile in the AGC database (about 1800 individuals). AGC governing documents requires the committee to ensure those approved to be on the election ballot keep the required balance of contractors and associates as well as only having one employee representing a single company. In this member report to the committee, AGC is to identify Life board members as well as Carry-Over board members who automatically have a seat on the board without requiring another election. During this sweeping action, Chris Reilly was grayed out as a Life board member, which he is as of Nov. 2016, and therefore was not considered to be listed on the election ballot. However, Chris Reilly was also on the Executive board and during the Executive board elections he was nominated and approved to move up in seats. This happened with Chris Reilly for the board terms 2020-2021, 2019-2020, 2018-2019, and 2017-2018. For board term 2016-2017, in November 2016 Chris Reilly was both a Carry-Over into 2017 as well as having completed his 12th year on the board and graduated to Life board status. Because Chris was completing his 2-year term, Chris' spot on the election ballot was reserved as \"Carry-Over\" and he was included in the count of the 3 elected in his division. His Carry-Over status prevented him from not being considered due to his new Life board status. Per the board elections minutes, the same life board circumstances happened with Mike Swalling for his 2013-2014 and 2014-2015 Executive board seat as well as Tony Johansen for his 2015-2016. They both were not listed on the ballot for election and elected during executive board elections. "]
["CLCR = Construction Leadership Council Representative Non-Voting Seat"]
["Gray = Current Life Board Member"]

{"sheet":"2015-2016 BoD","index":7,"n_rows":46,"n_cols":9,"rows_kept":46,"cut":false,"hidden":false,"merged":[[45,0,45,8],[0,0,0,8],[42,0,42,8],[43,0,43,8],[44,0,44,8],[41,0,41,8]]}
["2015-2016 Board of Directors"]
["Name"," First Name","Last Name","Term","Business Name","Title","Member-at-Large","Division","E/A"]
["Ben Ryan","Ben","Ryan","1 Year ","Ryan Air",null,null,"Associate","Appointed"]
["Billy Rosseau","Billy","Rosseau","1 Year","Advanced Blasting Services, LLC",null,"Member-at-Large","Specialty ","Elected"]
["Brian Midyett","Brian","Midyett","1 Year","Ahtna Engineering Services, LLC",null,"Member-at-Large","Building","Elected"]
["Bryce Erickson","Bryce","Erickson","Carry Over","Orion Marine Contractors, Inc.",null,"Member-at-Large","Heavy Industrial","Elected"]
["C. John Eng","C. John","Eng","Carry Over","Cornerstone General Contractors, Inc.",null,null,"Building","Elected"]
["Chris Reilly","Chris","Reilly","2 Year","Rain Proof Roofing",null,null,"Specialty ","Elected"]
["Cuauhtemoc Rodriguez","Cuauhtemoc","Rodriguez","1 Year ","Coldfoot Environmental Services, Inc.",null,null,"Specialty ","Elected"]
["Dan Hall","Dan","Hall","Carry Over","Knik Construction Co., Inc.","Vice President",null,"Heavy Industrial ","Elected"]
["Dana Pruhs","Dana","Pruhs","Carry Over","Pruhs Corporation","President",null,"Highway/Utility","Elected"]
["David Hale","David","Hale","1 Year","Hale & Associates, Inc.",null,null,"Associate","Elected"]
["David Shahnazarian","David","Shahnazarian","1 Year ","American Marine Corporation",null,null,"Specialty ","Appointed"]
["Derek Betts","Derek","Betts","1 Year","Granite Construction Company",null,null,"Highway/Utility","Elected"]
["Earl Andersen","Earl","Andersen","1 Year","Grazzini Brothers & Company",null,"Member-at-Large","Specialty ","Elected"]
["Gary Klebs","Gary","Klebs","1 Year","Klebs Mechanical, Inc.",null,"Member-at-Large","Specialty ","Elected"]
["Jason Davis","Jason","Davis","1 Year","Turnagain Marine",null,"Member-at-Large","Heavy Industrial","Elected"]
["Jaysen Mathiesen","Jaysen","Mathiesen","1 Year","M-Alaska Construction, LLC",null,"Member-at-Large","Building","Elected"]
["Jim St. George","Jim","St. George","2 Year","STG, Inc.","Secretary",null,"Heavy Industrial","Elected"]
["Kelly Layman","Kelly","Layman","1 Year ","Marsh & McLennan Agency",null,null,"Associate","Appointed"]
["Kirk Currey","Kirk","Currey","1 Year ","Construction Machinery Industrial, LLC",null,null,"Associate","Appointed"]
["Marcus Trivette","Marcus","Trivette","1 Year ","Brice, Inc.",null,null,"Heavy Industrial","Elected"]
["Mark Erickson","Mark","Erickson","1 Year","Mass Excavation",null,"Member-at-Large","Highway/Utility","Elected"]
["Meg Nordale","Meg","Nordale","2  Year","GHEMM Company, Inc.","Immediate Past President",null,"Building","Elected"]
["Michelle Holland","Michelle","Holland","2 Year","Holland Roofing Co., Inc.",null,"Member-at-Large","Specialty ","Elected"]
["Mike Shaw","Mike","Shaw","1 Year","Roger Hickel Contracting, Inc.","Treasurer",null,"Building","Elected"]
["R.T. Lindner","R.T.","Lindner","1 Year ","Johnson River Enterprises, LLC.",null,null,"Building","Appointed"]
["Regina Daniels","Regina","Daniels","1 Year ","Davis Block & Concrete",null,null,"Specialty ","Appointed"]
["Robert Cummings","Robert","Cummings","1 Year","Denali Mechanical, Inc.",null,"Member-at-Large","Specialty ","Elected"]
["Ron Smith","Ron","Smith","1 Year","AK Constructors, LLC",null,"Member-at-Large","Building","Elected"]
["Saigen Harris","Saigen","Harris","1 Year ","STG Inc. ","CLCR ",null,"Heavy Industrial","Appointed - CLCR"]
["Sarah Lefebvre","Sarah","Lefebvre","2 Year","Exclusive Paving",null,null,"Highway/Utility","Elected"]
["Scott Bringmann","Scott","Bringmann","Carry Over","Alcan Electrical & Engineering, Inc.",null,null,"Specialty ","Elected"]
["Scott Bucher","Scott","Bucher","1 Year ","Bucher Glass, Inc.",null,null,"Specialty ","Appointed"]
["Teri Gunter","Teri","Gunter","1 Year","Senco Alaska, Inc.",null,null,"Associate","Elected"]
["Toby Miller","Toby","Miller","1 Year","Miller Construction Co., Ltd",null,"Member-at-Large","Heavy Industrial","Elected"]
["Tom Fisher","Tom","Fisher","1 Year ","Aaron Plumbing & Heating, Co.",null,null,"Specialty ","Appointed"]
["Tony Johansen","Tony","Johansen","1 Year ","Great Northwest, Inc.","Contractor-at-Large",null,"Highway/Utility","Elected"]
["Traci Johnson","Traci","Johnson","1 Year","Spenard Builders Supply","Associate Member",null,"Associate","Elected"]
[]
["Notes"]
["Information reflects board as of the day of elections/appointments. It is not updated if the board member changes employers, board member's name changed, etc. "]
["Why are there 37 seats on the board this year? According to November 2015 AGC Board meeting minutes, there were 3 members voted for each division (Associate, Building, Highway/Utility, Heavy Industrial, and Specialty) totaling 15 elected members. The Member-at-Large vote added 12 more elected board members totaling 27. Tony Johansen was not amongst those voted. During the E-Board election, Tony Johansen was nominated to the E-Board seat Contractor-at-Large which was approved bringing the board up to 28 elected members. According to the December 2015 E-Board Meeting minutes, President Dana Pruhs had the power to appoint up to six (6) contractor members and thress (3) assoiciate members totaling nine (9) board appointments. President Dana Pruh appointed five (5)Contractors and three (3) associates totaling eight (8) board appointments. Dana Pruh's appointed 8 board members plus the 28 elected members totals 36 board seats. Plus the CLCR seat brings the total to 37 Board of Directors. "]
["What happened with Tony Johansen? In preparing for elections, AGC staff is to provide the Nomination/Board Development Committee a report of every member company's employees' information based off each individual profile in the AGC database (about 1800 individuals). AGC governing documents requires the committee to ensure those approved to be on the election ballot keep the required balance of contractors and associates as well as only having one employee representing a single company. In this member report to the committee, AGC is to identify Life board members as well as Carry-Over board members who automatically have a seat on the board without requiring another election. During this sweeping action, Tony Johansen was grayed out as a Life board member, which he is as of Nov. 2013, and therefore was not considered to be listed on the election ballot. However, during the Executive Board election, Tony Johansen was nominated and approved for the Contractor-at-Large seat. This happened with Chris Reilly for the board terms 2020-2021, 2019-2020, 2018-2019, and 2017-2018. For board term 2016-2017, in November 2016 Chris Reilly was both a Carry-Over into 2017 as well as having completed his 12th year on the board and graduated to Life board status. Because Chris was completing his 2-year term, Chris' spot on the election ballot was reserved as \"Carry-Over\" and he was included in the count of the 3 elected in his division. His Carry-Over status prevented him from not being considered due to his new Life board status. Per the board elections minutes, the same life board circumstances happened with Mike Swalling for his 2013-2014 and 2014-2015 Executive board seat. They both were not listed on the ballot for election and elected during executive board elections. "]
["CLCR = Construction Leadership Council Representative Non-Voting Seat"]
["Gray = Current Life Board Member"]

{"sheet":"2014-2015 BoD","index":8,"n_rows":47,"n_cols":9,"rows_kept":47,"cut":false,"hidden":false,"merged":[[0,0,0,8],[44,0,44,8],[43,0,43,8],[45,0,45,8],[46,0,46,8],[42,0,42,8]]}
["2014-2015 Board of Directors"]
["Full Name"," First Name","Last Name","Title","Term","Business Name","Division","Member-at-Large","E/A"]
[{"$f":"_xlfn.CONCAT(\"Billy\",\" \",\"Rosseau\")","v":"Billy Rosseau"},"Billy","Rosseau",null,"1 Year","Advanced Blasting Services, LLC","Specialty",null,"Appointed"]
[{"$f":"_xlfn.CONCAT(Table2[[#This Row],[ First Name]], \" \", Table2[[#This Row],[Last Name]])","v":"Brian Barney"},"Brian","Barney",null,"1 Year","NLC General, Inc.","Building","Member-at-Large","Elected"]
[{"$f":"_xlfn.CONCAT(Table2[[#This Row],[ First Name]], \" \", Table2[[#This Row],[Last Name]])","v":"Brian Midyett"},"Brian","Midyett",null,"1 Year","CH2M Hill Constructor, Inc.","Building",null,"Appointed"]
[{"$f":"_xlfn.CONCAT(Table2[[#This Row],[ First Name]], \" \", Table2[[#This Row],[Last Name]])","v":"Bryce Erickson"},"Bryce","Erickson",null,"2 Years","Orion Marine Contractors, Inc.","Heavy Industrial","Member-at-Large","Elected"]
[{"$f":"_xlfn.CONCAT(Table2[[#This Row],[ First Name]], \" \", Table2[[#This Row],[Last Name]])","v":"C. John Eng"},"C. John","Eng",null,"2 Year","Cornerstone General Contractors, Inc.","Building",null,"Elected"]
[{"$f":"_xlfn.CONCAT(Table2[[#This Row],[ First Name]], \" \", Table2[[#This Row],[Last Name]])","v":"Chris Reilly"},"Chris","Reilly",null,"Carry Over","Rain Proof Roofing","Specialty","Member-at-Large","Elected"]
[{"$f":"_xlfn.CONCAT(Table2[[#This Row],[ First Name]], \" \", Table2[[#This Row],[Last Name]])","v":"Cuauhtemoc Rodriguez"},"Cuauhtemoc","Rodriguez",null,"1 Year","Coldfoot Environmental Services, Inc.","Specialty",null,"Elected"]
[{"$f":"_xlfn.CONCAT(Table2[[#This Row],[ First Name]], \" \", Table2[[#This Row],[Last Name]])","v":"Dan Hall"},"Dan","Hall","Secretary","2 Year","Knik Construction Co., Inc.","Heavy Industrial",null,"Elected"]
[{"$f":"_xlfn.CONCAT(Table2[[#This Row],[ First Name]], \" \", Table2[[#This Row],[Last Name]])","v":"Dana Pruhs"},"Dana","Pruhs","Vice President","2 Year","Pruhs Construction","Highway/Utility",null,"Elected"]
[{"$f":"_xlfn.CONCAT(Table2[[#This Row],[ First Name]], \" \", Table2[[#This Row],[Last Name]])","v":"Dave  Cruz"},"Dave ","Cruz",null,"Carry Over","Cruz Construction, Inc.","Highway/Utility",null,"Elected"]
[{"$f":"_xlfn.CONCAT(Table2[[#This Row],[ First Name]], \" \", Table2[[#This Row],[Last Name]])","v":"Dave Johnson"},"Dave","Johnson",null,"1 Year","Anchorage Sand & Gravel Co., Inc.","Associate",null,"Elected"]
[{"$f":"_xlfn.CONCAT(Table2[[#This Row],[ First Name]], \" \", Table2[[#This Row],[Last Name]])","v":"Derek Betts"},"Derek","Betts",null,"1 Year","Granite Construction Company","Highway/Utility","Member-at-Large","Elected"]
[{"$f":"_xlfn.CONCAT(Table2[[#This Row],[ First Name]], \" \", Table2[[#This Row],[Last Name]])","v":"Earl Andersen"},"Earl","Andersen",null,"1 Year","Grazzini Brothers & Company","Specialty","Member-at-Large","Elected"]
[{"$f":"_xlfn.CONCAT(Table2[[#This Row],[ First Name]], \" \", Table2[[#This Row],[Last Name]])","v":"Gary Klebs"},"Gary","Klebs",null,"1 Year","Klebs Mechanical, Inc.","Specialty","Member-at-Large","Elected"]
[{"$f":"_xlfn.CONCAT(Table2[[#This Row],[ First Name]], \" \", Table2[[#This Row],[Last Name]])","v":"Jack Grieco"},"Jack","Grieco",null,"1 Year","Alaska USA Insurance Brokers","Associate",null,"Appointed"]
[{"$f":"_xlfn.CONCAT(Table2[[#This Row],[ First Name]], \" \", Table2[[#This Row],[Last Name]])","v":"Jason Davis"},"Jason","Davis",null,"1 Year","Turnagain Marine","Heavy Industrial",null,"Elected"]
[{"$f":"_xlfn.CONCAT(Table2[[#This Row],[ First Name]], \" \", Table2[[#This Row],[Last Name]])","v":"Jaysen Mathiesen"},"Jaysen","Mathiesen",null,"2 Year","M-Alaska Construction, LLC","Building","Member-at-Large","Elected"]
[{"$f":"_xlfn.CONCAT(Table2[[#This Row],[ First Name]], \" \", Table2[[#This Row],[Last Name]])","v":"Jeff Garness"},"Jeff","Garness",null,"1 Year","Garness Engineering Group, LTD","Building","Member-at-Large","Elected"]
[{"$f":"_xlfn.CONCAT(Table2[[#This Row],[ First Name]], \" \", Table2[[#This Row],[Last Name]])","v":"Jim St. George"},"Jim","St. George","Treasurer","Carry Over","STG, Inc.","Heavy Industrial",null,"Elected"]
[{"$f":"_xlfn.CONCAT(Table2[[#This Row],[ First Name]], \" \", Table2[[#This Row],[Last Name]])","v":"John Juettner  "},"John","Juettner  ",null,"1 Year","Global Diving & Salvage","Heavy Industrial ",null,"Appointed"]
[{"$f":"_xlfn.CONCAT(Table2[[#This Row],[ First Name]], \" \", Table2[[#This Row],[Last Name]])","v":"Kelly Layman"},"Kelly","Layman",null,"1 Year","Marsh & McLennan Agency","Associate",null,"Elected"]
[{"$f":"_xlfn.CONCAT(Table2[[#This Row],[ First Name]], \" \", Table2[[#This Row],[Last Name]])","v":"Kevin Welker"},"Kevin","Welker","Immediate Past President","1 Year","Kiewit Building Group","Building",null,"Elected"]
[{"$f":"_xlfn.CONCAT(Table2[[#This Row],[ First Name]], \" \", Table2[[#This Row],[Last Name]])","v":"Mark Erickson"},"Mark","Erickson",null,"1 Year","Mass Excavation","Highway/Utility",null,"Appointed"]
[{"$f":"_xlfn.CONCAT(Table2[[#This Row],[ First Name]], \" \", Table2[[#This Row],[Last Name]])","v":"Meg Nordale"},"Meg","Nordale","President","Carry Over","GHEMM Company, Inc.","Building",null,"Elected"]
[{"$f":"_xlfn.CONCAT(Table2[[#This Row],[ First Name]], \" \", Table2[[#This Row],[Last Name]])","v":"Michelle Holland"},"Michelle","Holland",null,"Carry Over","Holland Roofing Co., Inc.","Specialty",null,"Elected"]
[{"$f":"_xlfn.CONCAT(Table2[[#This Row],[ First Name]], \" \", Table2[[#This Row],[Last Name]])","v":"Mike Shaw"},"Mike","Shaw",null,"1 Year","Roger Hickel Contracting, Inc.","Building",null,"Elected"]
[{"$f":"_xlfn.CONCAT(Table2[[#This Row],[ First Name]], \" \", Table2[[#This Row],[Last Name]])","v":"Mike Swalling"},"Mike","Swalling","Contractor-at-Large","1 Year","Swalling Construction Co., Inc.","Heavy Industrial",null,"Elected"]
[{"$f":"_xlfn.CONCAT(Table2[[#This Row],[ First Name]], \" \", Table2[[#This Row],[Last Name]])","v":"Mike T. Gould"},"Mike T.","Gould",null,"1 Year","Excel Construction, Inc.","Specialty","Member-at-Large","Elected"]
[{"$f":"_xlfn.CONCAT(Table2[[#This Row],[ First Name]], \" \", Table2[[#This Row],[Last Name]])","v":"Regina Daniels"},"Regina","Daniels",null,"1 Year","Davis Block & Concrete","Associate",null,"Appointed"]
[{"$f":"_xlfn.CONCAT(Table2[[#This Row],[ First Name]], \" \", Table2[[#This Row],[Last Name]])","v":"Richard Green"},"Richard","Green",null,"1 Year","Spenard Builders Supply","Associate",null,"Appointed"]
[{"$f":"_xlfn.CONCAT(Table2[[#This Row],[ First Name]], \" \", Table2[[#This Row],[Last Name]])","v":"Robert Cummings"},"Robert","Cummings",null,"1 Year","Denali Mechanical, Inc.","Specialty","Member-at-Large","Elected"]
[{"$f":"_xlfn.CONCAT(Table2[[#This Row],[ First Name]], \" \", Table2[[#This Row],[Last Name]])","v":"Ron Smith"},"Ron","Smith",null,"1 Year","Ak Constructors, LLC","Building","Member-at-Large","Elected"]
[{"$f":"_xlfn.CONCAT(Table2[[#This Row],[ First Name]], \" \", Table2[[#This Row],[Last Name]])","v":"Sarah Lefebvre"},"Sarah","Lefebvre",null,"1 Year","Exclusive Paving","Highway/Utility",null,"Elected"]
[{"$f":"_xlfn.CONCAT(Table2[[#This Row],[ First Name]], \" \", Table2[[#This Row],[Last Name]])","v":"Scott Bringmann"},"Scott","Bringmann",null,"2 Year","Alcan Electrical & Engineering, Inc.","Specialty",null,"Elected"]
[{"$f":"_xlfn.CONCAT(Table2[[#This Row],[ First Name]], \" \", Table2[[#This Row],[Last Name]])","v":"Scott Bucher"},"Scott","Bucher",null,"1 Year","Bucher Glass, Inc.","Specialty",null,"Appointed"]
[{"$f":"_xlfn.CONCAT(Table2[[#This Row],[ First Name]], \" \", Table2[[#This Row],[Last Name]])","v":"Steve Percy"},"Steve","Percy",null,"1 Year","Alaska Interstate Construction, LLC (AIC)","Highway/Utility","Member-at-Large","Elected"]
[{"$f":"_xlfn.CONCAT(Table2[[#This Row],[ First Name]], \" \", Table2[[#This Row],[Last Name]])","v":"Teri Gunter"},"Teri","Gunter","Associate Member","1 Year","Senco Alaska, Inc.","Associate",null,"Elected"]
[{"$f":"_xlfn.CONCAT(Table2[[#This Row],[ First Name]], \" \", Table2[[#This Row],[Last Name]])","v":"Tom Ulrich"},"Tom","Ulrich",null,"1 Year","American Marine Corporation","Heavy Industrial",null,"Appointed"]
[]
["Notes"]
["Information reflects board as of the day of elections/appointments. It is not updated if the board member changes employers, board member's name changed, etc. "]
["Why are there 38 seats on the board this year? According to November 2014 AGC elections minutes, there were 3 members voted for each division (Building, Highway/Utility, Heavy Industrial, Specialty, and Associate) totaling 15 elected members. The Member-at-Large vote added 12 more elected board members totaling 27. Mike Swalling and Kevin Welker were not amongst those voted. During the E-Board election, Mike Swalling was nominated and approved to the Contractor-at-Large seat and Kevin Welker's seat move to Immediate Past President which brought board up to 29 elected members. According to the December 2014 E-Board Meeting minutes, President Meg Nordale Appointed appointed six (6) contractor members and thress (3) assoiciate members totaling nine (9) board appointments. President's appointed 9 board members plus the 29 elected members totals 38 board seats. "]
["What happened with Mike Swalling? In preparing for elections, AGC staff is to provide the Nomination/Board Development Committee a report of every member company's employees' information based off each individual profiled in the AGC database (about 1800 individuals). AAGC governing documents requires the committee to ensure those approved to be on the election ballot keep the required balance of contractors and associates as well as only having one employee representing a single company. In this member report to the committee, AGC is to identify Life board members as well as Carry-Over board members who automatically have a seat on the board without requiring another election. During this sweeping action, Mike Swalling was grayed out as a Life board member, which he was as of 1993, and therefore was not listed on the election ballot. However, during the Executive board elections he was nominated and approved as the Contractor-at-Large. This happened with Chris Reilly for the board terms 2020-2021, 2019-2020, 2018-2019, and 2017-2018. For board term 2016-2017, in November 2016 Chris Reilly was both a Carry-Over into 2017 as well as having completed his 12th year on the board and graduated to Life board status. Because Chris was completing his 2-year term, Chris' spot on the election ballot was reserved as \"Carry-Over\" and he was included in the count of the 3 elected in his division. His Carry-Over status prevented him from not being considered due to his new Life board status. Per the board elections minutes, the same life board circumstances happened with Mike Swalling for his 2013-2014 and 2014-2015 Executive board seat as well as Tony Johansen for his 2015-2016. They were not listed on the ballot for election and elected during executive board elections. "]
["What Happened with Kevin Welker? Records indicate he was not voted onto the board during the general elections however he was automatically the Immediate-Past-President. "]
["Gray = Current Life Board Member"]

{"sheet":"2013-2014 BoD","index":9,"n_rows":45,"n_cols":9,"rows_kept":45,"cut":false,"hidden":false,"merged":[[43,0,43,8],[0,0,0,8],[42,0,42,8],[44,0,44,8],[41,0,41,8]]}
["2013-2014 Board of Directors"]
["Name"," First Name","Last Name"," Title","Term","Business Name","Divison","Member-at-Large","E/A"]
["Brian Horschel","Brian","Horschel",null,"Carry Over ","Acme Fence Company","Specialty",null,"Elected"]
["Brian Midyett","Brian","Midyett",null,"1 Year","CH2M Hill Constructor, Inc.","Heavy Industrial",null,"Elected"]
["Bryce Erickson","Bryce","Erickson",null,"1 Year","Orion Marine Contractors, Inc.","Heavy Industrial",null,"Elected"]
["C. John Eng","C. John","Eng","Immediate Past President","1 Year","Cornerstone General Contractors, Inc.","Building",null,"Elected"]
["Chris Reilly","Chris","Reilly",null,"2 Year","Rain Proof Roofing","Specialty","Member-at-Large","Elected"]
["Cuauhtemoc Rodriguez","Cuauhtemoc","Rodriguez",null,"1 Year","Coldfoot Environmental Services, Inc.","Specialty","Member-at-Large","Elected"]
["Dan Hall","Dan","Hall","Treasurer","1 Year","Knik Construction Co., Inc.","Highway/Utility",null,"Elected"]
["Dana Pruhs","Dana","Pruhs","Secretary","Carry-Over","Pruhs Corporation","Highway/Utility","Member-at-Large","Elected"]
["Dave Cruz","Dave","Cruz",null,"2 Year","Cruz Construction, Inc.","Highway/Utility",null,"Elected"]
["Dave Johnson","Dave","Johnson",null,"1 Year","Anchorage Sand & Gravel Co., Inc.","Associate ",null,"Elected"]
["Derek Betts","Derek","Betts",null,"1 Year","Granite Construction Company","Highway/Utility","Member-at-Large","Elected"]
["Earl Andersen","Earl","Andersen",null,"1 Year","Grazzini Brothers & Company","Specialty",null,"Appointed"]
["Gary Klebs","Gary","Klebs",null,"1 Year","Klebs Mechanical, Inc.","Specialty","Member-at-Large","Elected"]
["Jack Grieco","Jack","Grieco",null,"1 Year","Alaska USA Insurance Brokers","Associate ",null,"Appointed"]
["Jason Davis","Jason","Davis",null,"1 Year","Pacific Pile & Marine LLP","Heavy Industrial",null,"Appointed"]
["Jeff Garness","Jeff","Garness",null,"N/A","Garness Engineering Group, LTD","Building",null,"Elected"]
["Jim St. George","Jim","St. George",null,"2 Year","STG, Inc.","Heavy Industrial",null,"Elected"]
["Joe Spinks","Joe ","Spinks",null,"Carry Over ","Granite Construction Company","Highway/Utility",null,"Elected"]
["Kelly Layman","Kelly","Layman","Associate Member","1 Year","Marsh & McLennan Agency","Associate ",null,"Elected"]
["Kevin Welker","Kevin","Welker","President","Carry Over ","Kiewit Building Group","Building",null,"Elected"]
["Mark Erickson","Mark","Erickson",null,"1 Year","Mass Excavation","Specialty","Member-at-Large","Elected"]
["Meg Nordale","Meg","Nordale","Vice President","2 Year","GHEMM Company, Inc.","Building",null,"Elected"]
["Michael Liebing","Michael","Liebing",null,"1 Year","Otis Elevator Co.","Specialty","Member-at-Large","Elected"]
["Michelle Holland","Michelle","Holland",null,"2 Year","Holland Roofing Co., Inc.","Specialty",null,"Elected"]
["Mike Shaw","Mike","Shaw",null,"1 Year","Roger Hickel Contracting, Inc.","Building","Member-at-Large","Elected"]
["Mike Swalling","Mike","Swalling","Contractor-at-Large","1 Year ","Swalling Construction Co., Inc.","Heavy Industrial",null,"Elected"]
["Mike T. Gould","Mike T.","Gould",null,"1 Year","Excel Construction, Inc.","Specialty",null,"Appointed"]
["Regina Daniels","Regina","Daniels",null,"1 Year","Davis Block & Concrete","Associate ",null,"Appointed"]
["Richard Green","Richard","Green",null,"1 Year","Spenard Builders Supply","Associate ",null,"Appointed"]
["Robert Cummings","Robert","Cummings",null,"1 Year","Denali Mechanical, Inc.","Specialty",null,"Elected"]
["Ron Smith","Ron","Smith",null,"1 Year","AK Constructors, LLC","Building",null,"Appointed"]
["Sam Robert Brice","Sam Robert","Brice",null,"Carry Over ","Brice, Inc.","Heavy Industrial",null,"Elected"]
["Sarah Lefebvre","Sarah","Lefebvre",null,"1 Year","Exclusive Paving","Highway/Utility","Member-at-Large","Elected"]
["Scott Bringmann","Scott","Bringmann",null,"1 Year","Alcan Electrical & Engineering, Inc.","Specialty","Member-at-Large","Elected"]
["Scott Bucher","Scott","Bucher",null,"1 Year","Bucher Glass, Inc.","Specialty",null,"Appointed"]
["Steve Percy","Steve","Percy",null,"1 Year","Alaska Interstate Construction, LLC (AIC)","Highway/Utility","Member-at-Large","Elected"]
["Teri Gunter","Teri","Gunter",null,"1 Year","Senco Alaska, Inc.","Associate ",null,"Elected"]
[]
["Notes"]
["Information reflects board as of the day of elections/appointments. It is not updated if the board member changes employers, board member's name changed, etc. "]
["Joe Spinks listed in elections minutes but not in directory. "]
["Jeff Garness listed in directory but not listed in election minutes"]
["Gray = Current Life Board Member"]